bitfinex/quotes_BTCUSD_20250718
["timestamp","ask_amount","ask_price","bid_price","bid_amount"]
[1752880582333,0.25065423,117750.0,117740.0,0.59645201]
[1752880582553,0.25065423,117750.0,117740.0,0.001]
[1752880582554,0.30201349,117750.0,117740.0,0.001]
[1752880582770,0.25680186,117750.0,117740.0,0.001]
[1752880583454,0.26011985,117740.0,117730.0,0.49775893]
[1752880583657,0.26530985,117740.0,117730.0,0.50625258]
[1752880583858,0.10393712,117740.0,117730.0,0.51474615]
[1752880584072,0.09544398,117740.0,117730.0,0.52323965]
[1752880584340,0.06381953,117740.0,117730.0,0.52323965]
[1752880584549,0.11242976,117740.0,117730.0,0.52323965]
[1752880584968,0.10393662,117740.0,117730.0,0.52323965]
[1752880585566,0.08929903,117740.0,117730.0,0.51474615]
[1752880585807,0.12192305,117740.0,117730.0,0.51474615]
[1752880586012,0.12192305,117740.0,117730.0,0.52323965]
[1752880586248,0.11343041,117740.0,117730.0,0.51474615]
[1752880586465,0.11443041,117740.0,117730.0,0.51474615]
[1752880586999,0.11443041,117740.0,117730.0,0.52323965]
[1752880587409,0.11443041,117740.0,117730.0,0.51474615]
[1752880587679,0.10593712,117740.0,117730.0,0.52323965]
[1752880587964,0.09744398,117740.0,117730.0,0.5377805]
[1752880588195,0.11443033,117740.0,117730.0,0.5377805]
[1752880589044,0.11443033,117740.0,117730.0,0.29536945]
[1752880589266,0.12292362,117740.0,117730.0,0.5377805]
[1752880589999,0.10593712,117740.0,117730.0,0.5377805]
[1752880590444,0.10593647,117740.0,117730.0,0.5377805]
[1752880590668,0.09744348,117740.0,117730.0,0.5377805]
[1752880590890,0.1059364,117740.0,117730.0,0.5398405]
[1752880591103,0.10593633,117740.0,117730.0,0.5398405]
[1752880591317,0.0889507,117740.0,117730.0,0.5398405]
[1752880591529,0.09744341,117740.0,117730.0,0.5398405]
[1752880591740,0.11442933,117740.0,117730.0,0.5398405]
[1752880592190,0.12292247,117740.0,117730.0,0.5377805]
[1752880592404,0.11442933,117740.0,117730.0,0.5377805]
[1752880592588,0.10593626,117740.0,117730.0,0.5377805]
[1752880592798,0.09744341,117740.0,117730.0,0.5377805]
[1752880593014,0.10593626,117740.0,117730.0,0.5398405]
[1752880593253,0.11442926,117740.0,117730.0,0.5398405]
[1752880593457,0.07431224,117740.0,117730.0,0.5398405]
[1752880593679,0.10593626,117740.0,117730.0,0.5398405]
[1752880593893,0.07431224,117740.0,117730.0,0.5398405]
[1752880594111,0.002,117740.0,117730.0,0.5415905]
[1752880594328,0.01234404,117740.0,117730.0,1.03487729]
[1752880594577,0.002,117740.0,117730.0,1.03487729]
[1752880595495,0.002,117740.0,117730.0,1.00010078]
[1752880596482,0.002,117740.0,117730.0,0.98370078]
[1752880596685,0.001,117740.0,117730.0,0.98370078]
[1752880597105,0.001,117740.0,117730.0,0.98470078]
[1752880597518,0.001,117740.0,117730.0,1.00110078]
[1752880597942,0.01034404,117750.0,117740.0,0.56648564]
[1752880598152,0.01034404,117750.0,117740.0,0.96494697]
[1752880598385,0.04094404,117760.0,117750.0,0.53532821]
[1752880598613,0.04094404,117760.0,117750.0,0.60586821]
[1752880598853,0.04094404,117760.0,117750.0,0.84827926]
[1752880599083,0.04597404,117760.0,117750.0,0.84827926]
[1752880600003,0.04597404,117760.0,117750.0,0.90827926]
[1752880600213,0.04396404,117760.0,117750.0,0.90827926]
[1752880600601,0.04596404,117760.0,117750.0,0.90827926]
[1752880601624,0.04796404,117760.0,117750.0,0.90827926]
[1752880602630,0.04494404,117760.0,117750.0,0.90827926]
[1752880602835,0.0346,117760.0,117750.0,0.90827926]
[1752880603031,0.004,117760.0,117750.0,1.25074144]
[1752880603245,0.004,117760.0,117750.0,1.26909144]
[1752880603466,0.004,117760.0,117750.0,1.28549144]
[1752880603913,0.002,117760.0,117750.0,1.28549144]
[1752880604113,0.0004,117770.0,117760.0,0.54985246]
[1752880604351,0.0004,117770.0,117760.0,1.03673456]
[1752880604561,0.0004,117770.0,117760.0,1.12224484]
[1752880605363,0.0004,117770.0,117760.0,1.12424484]
[1752880605944,0.0004,117770.0,117760.0,1.12624484]
[1752880608809,0.0004,117770.0,117760.0,1.19468484]
[1752880611765,0.0004,117770.0,117760.0,0.70986274]
[1752880611989,0.0004,117770.0,117760.0,1.19468484]
[1752880612202,0.0004,117770.0,117760.0,1.29681135]
[1752880613087,0.0004,117770.0,117760.0,1.22903484]
[1752880616249,1e-08,117770.0,117760.0,1.47144589]
[1752880616476,1e-08,117770.0,117760.0,1.48982187]
[1752880616669,1e-08,117770.0,117760.0,1.24741082]
[1752880616870,1e-08,117770.0,117760.0,1.48982187]
[1752880617073,1e-08,117770.0,117760.0,1.24741082]
[1752880617275,1e-08,117770.0,117760.0,1.25080882]
[1752880618647,1e-08,117770.0,117760.0,2.57621782]
[1752880619374,1e-08,117770.0,117760.0,1.93936782]
[1752880619794,1e-08,117770.0,117760.0,1.91899184]
[1752880619995,1e-08,117770.0,117760.0,1.94136782]
[1752880620225,1e-08,117770.0,117760.0,1.94436782]
[1752880621086,1e-08,117770.0,117760.0,1.77580982]
[1752880621318,1e-08,117770.0,117760.0,1.46125282]
[1752880621559,1e-08,117770.0,117760.0,1.25380882]
[1752880621784,1e-08,117770.0,117760.0,1.21945882]
[1752880622715,1e-08,117770.0,117760.0,1.11470399]
[1752880622964,0.26515234,117770.0,117760.0,0.007]
[1752880623192,0.26515234,117770.0,117760.0,0.487688]
[1752880623432,0.30868865,117770.0,117760.0,0.007]
[1752880623661,0.30868865,117770.0,117760.0,0.003]
[1752880624140,0.26715234,117770.0,117760.0,0.003]
[1752880624360,0.26515234,117770.0,117760.0,0.003]
[1752880624585,0.26715234,117770.0,117760.0,0.24541105]
[1752880624811,0.26715234,117770.0,117760.0,0.24241105]
[1752880625025,0.26515234,117770.0,117760.0,0.24241105]
[1752880625284,0.26515234,117770.0,117760.0,0.31093105]
[1752880626371,0.26815234,117770.0,117760.0,0.31093105]
[1752880626599,0.27015234,117770.0,117760.0,0.31093105]
[1752880628945,0.27015234,117770.0,117760.0,0.48925977]
[1752880629175,0.10032938,117770.0,117760.0,0.26383183]
[1752880629388,0.09183862,117770.0,117760.0,0.75714527]
[1752880629597,0.09183862,117770.0,117760.0,0.82492178]
[1752880629598,0.10032931,117770.0,117760.0,0.82492178]
[1752880629804,0.10032938,117770.0,117760.0,0.82492178]
[1752880630018,0.09183862,117770.0,117760.0,0.58251073]
[1752880630229,0.10032931,117770.0,117760.0,0.58251073]
[1752880630502,0.09832931,117770.0,117760.0,0.58251073]
[1752880630716,0.0764945,117770.0,117760.0,0.82492178]
[1752880630887,0.08034807,117770.0,117760.0,0.82492178]
[1752880631392,0.04872405,117770.0,117760.0,0.82492178]
[1752880631638,0.08034807,117770.0,117760.0,0.75923527]
[1752880631837,0.07000403,117770.0,117760.0,0.75923527]
[1752880632256,0.08034807,117770.0,117760.0,0.75923527]
[1752880632475,0.03838001,117770.0,117760.0,0.75923527]
[1752880632624,0.08983854,117770.0,117760.0,0.75923527]
[1752880632827,0.06562403,117770.0,117760.0,1.1992864]
[1752880633037,0.00300001,117770.0,117760.0,1.2010364]
[1752880633252,0.00300001,117770.0,117760.0,1.1992864]
[1752880634645,0.03462403,117770.0,117760.0,0.7144643]
[1752880634848,0.0431145,117770.0,117760.0,1.1992864]
[1752880635252,0.00300001,117770.0,117760.0,1.1992864]
[1752880637488,0.00300001,117770.0,117760.0,0.7144643]
[1752880637694,0.0431145,117770.0,117760.0,1.1992864]
[1752880637895,0.00300001,117770.0,117760.0,1.1992864]
[1752880640054,0.02212103,117770.0,117760.0,1.1992864]
[1752880640275,0.10466643,117770.0,117760.0,1.1993264]
[1752880640953,0.08768505,117770.0,117760.0,1.1993264]
[1752880641171,0.09617574,117770.0,117760.0,1.1993264]
[1752880641378,0.00300001,117770.0,117760.0,1.1993264]
[1752880642036,0.00300001,117770.0,117760.0,1.2010764]
[1752880642264,0.00300001,117770.0,117760.0,1.2161764]
[1752880642478,0.00300001,117770.0,117760.0,1.2323764]
[1752880643114,0.00100001,117770.0,117760.0,1.2323764]
[1752880643568,0.00100001,117770.0,117760.0,1.2333764]
[1752880643782,1e-08,117770.0,117760.0,1.2333764]
[1752880643990,1e-08,117770.0,117760.0,1.2343764]
[1752880644445,1e-08,117770.0,117760.0,1.2598634]
[1752880645101,1e-08,117770.0,117760.0,1.27823938]
[1752880646615,1e-08,117790.0,117780.0,0.04634085]
[1752880646834,0.00014928,117790.0,117780.0,2.52735123]
[1752880647049,0.00014928,117790.0,117780.0,1.42925868]
[1752880647376,0.00014928,117790.0,117780.0,1.42186258]
[1752880647799,0.00014928,117790.0,117780.0,1.43677506]
[1752880648012,0.00014928,117790.0,117780.0,1.26507806]
[1752880648212,0.00014928,117790.0,117780.0,0.92210701]
[1752880648428,0.00014928,117790.0,117780.0,0.98927701]
[1752880649024,0.00014928,117790.0,117780.0,0.99102701]
[1752880649225,0.00014928,117790.0,117780.0,1.23343806]
[1752880649648,0.00014928,117790.0,117780.0,1.24933806]
[1752880649850,0.00014928,117790.0,117780.0,1.26863806]
[1752880651003,0.00014928,117790.0,117780.0,1.26012358]
[1752880652293,0.0004,117810.0,117790.0,0.53282373]
[1752880652510,0.0004,117810.0,117800.0,1.22563076]
[1752880652689,0.0004,117810.0,117800.0,1.19130852]
[1752880652839,0.0004,117810.0,117800.0,1.20466252]
[1752880654294,0.0004,117810.0,117800.0,0.65080042]
[1752880654539,0.0004,117810.0,117800.0,1.20462252]
[1752880654713,0.03736,117810.0,117800.0,1.20247252]
[1752880655318,0.03736,117810.0,117800.0,1.19011852]
[1752880656097,0.03736,117810.0,117800.0,1.12111852]
[1752880656316,0.05619163,117810.0,117800.0,0.94766747]
[1752880656726,0.0731671,117810.0,117800.0,0.94766747]
[1752880656931,0.06467929,117810.0,117800.0,0.94766747]
[1752880657197,0.04770404,117810.0,117800.0,0.94766747]
[1752880657612,0.0561917,117810.0,117800.0,0.94766747]
[1752880658358,0.04770404,117810.0,117800.0,0.94766747]
[1752880658567,0.0561917,117810.0,117800.0,0.94766747]
[1752880658799,0.04770404,117810.0,117800.0,0.94766747]
[1752880659011,0.04770404,117810.0,117800.0,1.19007852]
[1752880659260,0.04770404,117810.0,117800.0,0.94766747]
[1752880659478,0.06467944,117810.0,117800.0,0.94766747]
[1752880659711,0.05619163,117810.0,117800.0,0.94666747]
[1752880660140,0.05719163,117810.0,117800.0,0.94666747]
[1752880660352,0.04870404,117810.0,117800.0,1.18907852]
[1752880666082,0.0014,117810.0,117800.0,1.19122852]
[1752880666558,0.0014,117810.0,117800.0,1.19297852]
[1752880667246,0.0014,117810.0,117800.0,1.19122852]
[1752880668606,0.0014,117810.0,117800.0,1.20937852]
[1752880668833,0.0014,117810.0,117800.0,1.23485852]
[1752880669260,0.0014,117810.0,117800.0,1.21845852]
[1752880669926,0.0014,117810.0,117800.0,1.23345852]
[1752880670145,0.0014,117810.0,117800.0,1.24935852]
[1752880671832,0.0004,117810.0,117800.0,1.25035852]
[1752880672035,0.0004,117810.0,117800.0,1.25235852]
[1752880673770,1e-08,117810.0,117800.0,3.32810957]
[1752880673994,1e-08,117810.0,117800.0,3.20342055]
[1752880674667,1e-08,117810.0,117800.0,2.4761874]
[1752880674885,1e-08,117810.0,117800.0,1.8480095]
[1752880675326,1e-08,117850.0,117840.0,0.22607902]
[1752880675553,0.0317,117860.0,117850.0,0.50970725]
[1752880675731,0.03219767,117860.0,117850.0,0.93220379]
[1752880675967,0.03420767,117860.0,117850.0,0.06912]
[1752880676174,0.01697136,117840.0,117830.0,0.43760656]
[1752880676375,0.26313304,117840.0,117830.0,0.24241105]
[1752880676653,0.24114673,117830.0,117820.0,0.40916]
[1752880676863,0.24315673,117830.0,117820.0,0.31157105]
[1752880677077,0.24617673,117830.0,117820.0,0.31157105]
[1752880677290,0.24617673,117830.0,117820.0,0.24241105]
[1752880677496,0.24617673,117830.0,117820.0,0.31161105]
[1752880677699,0.24617673,117830.0,117820.0,0.65161105]
[1752880678129,0.24617673,117830.0,117820.0,0.58241105]
[1752880678335,0.26481187,117830.0,117820.0,0.06916]
[1752880678542,0.26481187,117830.0,117820.0,0.31157105]
[1752880678726,0.26881187,117830.0,117820.0,0.31157105]
[1752880678961,0.25217673,117830.0,117820.0,0.31157105]
[1752880681373,0.23268889,117810.0,117800.0,0.58241105]
[1752880681573,0.23771889,117810.0,117800.0,0.4092]
[1752880681781,0.23771889,117810.0,117800.0,0.65161105]
[1752880682632,0.23821625,117810.0,117800.0,0.4092]
[1752880682805,0.23821625,117810.0,117800.0,0.31161105]
[1752880683031,0.23821625,117810.0,117800.0,0.49231047]
[1752880683233,0.08542735,117810.0,117800.0,0.50928759]
[1752880683445,0.03682736,117810.0,117800.0,0.52382844]
[1752880683811,0.07693911,117810.0,117800.0,0.60933872]
[1752880684012,0.09391487,117810.0,117800.0,0.60933872]
[1752880684157,0.08542692,117810.0,117800.0,0.60933872]
[1752880684364,0.06845138,117810.0,117800.0,0.61033872]
[1752880684567,0.07693911,117810.0,117800.0,0.61033872]
[1752880684796,0.00249736,117810.0,117800.0,1.49164271]
[1752880684969,0.03592,117840.0,117830.0,0.20973644]
[1752880685171,0.03807915,117840.0,117830.0,0.6014802]
[1752880686180,0.03807915,117840.0,117830.0,0.36512672]
[1752880686399,0.03807915,117840.0,117830.0,0.6014802]
[1752880687423,0.04656458,117840.0,117830.0,0.6014802]
[1752880687623,0.03907915,117840.0,117830.0,0.6014802]
[1752880690152,0.04756465,117840.0,117830.0,0.6014802]
[1752880690353,0.05605037,117840.0,117830.0,0.6014802]
[1752880691474,0.23425832,117840.0,117830.0,0.24484028]
[1752880691655,0.08958333,117830.0,117820.0,0.43155349]
[1752880691863,0.08612668,117830.0,117820.0,0.50964058]
[1752880692066,0.08612653,117830.0,117820.0,0.84964058]
[1752880692504,0.05450251,117830.0,117820.0,0.84964058]
[1752880692670,0.06915402,117830.0,117820.0,0.84964058]
[1752880693240,0.07864017,117830.0,117820.0,0.84964058]
[1752880693478,0.07015402,117830.0,117820.0,0.84964058]
[1752880694061,0.07864024,117830.0,117820.0,0.84964058]
[1752880694264,0.07015402,117830.0,117820.0,0.84964058]
[1752880695263,0.03262402,117830.0,117820.0,0.86633143]
[1752880695478,0.03262402,117830.0,117820.0,0.95184171]
[1752880695479,0.001,117830.0,117820.0,0.95184171]
[1752880707089,0.001,117830.0,117820.0,0.95737003]
[1752880712651,0.001,117830.0,117820.0,1.20100183]
[1752880712815,0.001,117830.0,117820.0,1.23260183]
[1752880714474,0.00014915,117840.0,117830.0,0.19519559]
[1752880714699,0.00014915,117840.0,117830.0,0.83557947]
[1752880717076,0.00114915,117840.0,117830.0,0.83557947]
[1752880717304,0.00114915,117840.0,117830.0,0.86064091]
[1752880725578,0.00114915,117840.0,117830.0,1.21693176]
[1752880725797,0.00114915,117840.0,117830.0,1.23263176]
[1752880726007,0.00114915,117840.0,117830.0,1.25810476]
[1752880728845,0.00114915,117840.0,117830.0,1.27450476]
[1752880730326,0.0004,117860.0,117850.0,0.58090331]
[1752880730523,0.0004,117860.0,117850.0,1.22263719]
[1752880730721,0.0004,117860.0,117850.0,0.98075539]
[1752880731003,0.03646,117860.0,117850.0,0.94565539]
[1752880731150,0.03646,117860.0,117850.0,0.70385359]
[1752880731357,0.03646,117860.0,117850.0,0.94573539]
[1752880731533,0.03646,117860.0,117850.0,0.94773539]
[1752880731733,0.03646,117860.0,117850.0,0.94973539]
[1752880732152,0.04494399,117860.0,117850.0,0.87909539]
[1752880732524,0.03646,117860.0,117850.0,0.94873539]
[1752880732732,0.03646,117860.0,117850.0,0.95088539]
[1752880733243,0.03646,117860.0,117850.0,0.94888539]
[1752880733673,0.03646,117860.0,117850.0,0.94988539]
[1752880736300,0.03646,117860.0,117850.0,0.94773539]
[1752880736960,0.04494399,117860.0,117850.0,0.94773539]
[1752880737283,0.06191233,117860.0,117850.0,0.94773539]
[1752880737502,0.05342805,117860.0,117850.0,0.94773539]
[1752880737713,0.06191233,117860.0,117850.0,0.94773539]
[1752880737891,0.06191233,117860.0,117850.0,0.94673539]
[1752880738224,0.05342805,117860.0,117850.0,0.94673539]
[1752880738769,0.06191218,117860.0,117850.0,0.94673539]
[1752880738969,0.07039646,117860.0,117850.0,0.94573539]
[1752880739436,0.06191218,117860.0,117850.0,0.94573539]
[1752880739642,0.04494399,117860.0,117850.0,0.94573539]
[1752880739864,0.0534282,117860.0,117850.0,0.94573539]
[1752880740453,0.04494399,117860.0,117850.0,0.94573539]
[1752880740681,0.0534282,117860.0,117850.0,0.94573539]
[1752880741441,0.04494399,117860.0,117850.0,0.94573539]
[1752880741640,0.05342805,117860.0,117850.0,0.94573539]
[1752880742105,0.06191218,117860.0,117850.0,0.94573539]
[1752880742315,0.05342805,117860.0,117850.0,0.94573539]
[1752880742522,0.04494399,117860.0,117850.0,0.94573539]
[1752880742732,0.03646,117860.0,117850.0,0.94573539]
[1752880743378,0.03646,117860.0,117850.0,1.00573539]
[1752880743996,0.0314,117860.0,117850.0,0.76594359]
[1752880744254,0.0004,117860.0,117850.0,1.73327219]
[1752880744461,0.0004,117860.0,117850.0,1.75874119]
[1752880744632,0.0004,117860.0,117850.0,1.66827119]
[1752880744861,0.0004,117860.0,117850.0,1.46150319]
[1752880745080,0.0004,117860.0,117850.0,1.44120319]
[1752880745287,0.0004,117860.0,117850.0,1.44320319]
[1752880747826,0.0004,117860.0,117850.0,1.44520319]
[1752880749111,0.0004,117860.0,117850.0,1.39620819]
[1752880749660,0.0004,117860.0,117850.0,1.28685719]
[1752880750122,0.0004,117860.0,117850.0,1.88619119]
[1752880751168,0.0004,117860.0,117850.0,1.69342919]
[1752880753453,0.0004,117860.0,117850.0,1.42868619]
[1752880754993,0.0004,117860.0,117850.0,1.39339119]
[1752880755240,0.0004,117860.0,117850.0,1.41609119]
[1752880755697,0.0004,117860.0,117850.0,1.28685719]
[1752880755941,0.0004,117860.0,117850.0,1.41309119]
[1752880756414,0.0004,117860.0,117850.0,1.28685719]
[1752880756629,0.0004,117860.0,117850.0,1.27155719]
[1752880756821,0.0004,117860.0,117850.0,1.02967539]
[1752880757031,0.0004,117860.0,117850.0,1.14149339]
[1752880757158,0.0004,117860.0,117850.0,1.02792539]
[1752880757567,0.0004,117860.0,117850.0,1.01357539]
[1752880758891,0.00342,117860.0,117850.0,0.94318539]
[1752880759113,0.03745,117860.0,117850.0,1.00961539]
[1752880759318,0.03745,117860.0,117850.0,1.01170539]
[1752880759521,0.0323,117860.0,117850.0,1.01170539]
[1752880759940,0.03745,117860.0,117850.0,0.60109539]
[1752880760147,0.03745,117860.0,117850.0,0.65507454]
[1752880760347,0.03745,117860.0,117850.0,0.99507454]
[1752880760556,0.03745,117860.0,117850.0,1.00961539]
[1752880760764,0.03745,117860.0,117850.0,1.00761539]
[1752880761163,0.03745,117860.0,117850.0,1.00661539]
[1752880761569,0.03745,117860.0,117850.0,1.00761539]
[1752880762416,0.03532,117860.0,117850.0,1.00970539]
[1752880762617,0.0323,117860.0,117850.0,1.00970539]
[1752880762822,0.0323,117860.0,117850.0,1.25158719]
[1752880762823,0.0004,117860.0,117850.0,1.25158719]
[1752880763025,0.0004,117860.0,117850.0,1.25333719]
[1752880763393,0.0004,117860.0,117850.0,1.26833719]
[1752880763618,0.0004,117860.0,117850.0,1.02645539]
[1752880763818,0.0004,117860.0,117850.0,1.25333719]
[1752880764022,0.0004,117860.0,117850.0,1.26833719]
[1752880764244,0.0004,117860.0,117850.0,1.02645539]
[1752880764441,0.0004,117860.0,117850.0,1.26833719]
[1752880764626,0.0004,117860.0,117850.0,1.28373719]
[1752880766851,0.0004,117860.0,117850.0,0.79997359]
[1752880767062,0.0004,117860.0,117850.0,1.26833719]
[1752880768059,0.0004,117860.0,117850.0,1.25333719]
[1752880768840,0.0004,117860.0,117850.0,1.01145539]
[1752880771074,2.17e-06,117860.0,117850.0,1.25333719]
[1752880775118,2.17e-06,117860.0,117850.0,1.25158719]
[1752880777347,2.17e-06,117860.0,117850.0,1.00970539]
[1752880780543,2.17e-06,117860.0,117850.0,1.25158719]
[1752880781147,0.10362,117870.0,117860.0,0.1951459]
[1752880781334,0.13718,117870.0,117860.0,1.17289978]
[1752880781745,0.13718,117870.0,117860.0,1.17484978]
[1752880791097,0.0004,117880.0,117870.0,0.01696704]
[1752880791303,0.00054909,117880.0,117870.0,0.8369142]
[1752880791503,0.00054909,117880.0,117870.0,1.19248407]
[1752880791703,0.00054909,117880.0,117870.0,1.22388407]
[1752880792127,0.00054909,117880.0,117870.0,1.20788407]
[1752880793345,0.00154909,117880.0,117870.0,1.20788407]
[1752880793757,0.00054909,117880.0,117870.0,1.22488407]
[1752880793983,0.00054909,117880.0,117870.0,1.22588407]
[1752880794399,0.00054909,117880.0,117870.0,1.23446624]
[1752880795980,0.00054909,117880.0,117870.0,1.21846624]
[1752880796318,0.00054909,117880.0,117870.0,1.20306624]
[1752880796492,0.00054909,117880.0,117870.0,1.19448407]
[1752880801137,0.00054909,117880.0,117870.0,1.20988407]
[1752880801570,2.31e-06,117880.0,117870.0,1.23565232]
[1752880801781,2.31e-06,117880.0,117870.0,1.27564786]
[1752880801991,2.31e-06,117880.0,117870.0,3.44292332]
[1752880803440,2.31e-06,117880.0,117870.0,3.46641886]
[1752880804072,2.31e-06,117880.0,117870.0,3.46441886]
[1752880804373,2.31e-06,117880.0,117870.0,3.47181386]
[1752880804901,2.31e-06,117880.0,117870.0,3.44831832]
[1752880805070,2.31e-06,117880.0,117870.0,3.45693444]
[1752880805939,2.31e-06,117880.0,117870.0,3.51693444]
[1752880808161,2.31e-06,117880.0,117870.0,3.07896944]
[1752880808372,0.03366231,117880.0,117870.0,1.32624144]
[1752880808582,0.03678231,117880.0,117870.0,1.28767844]
[1752880808795,0.03366231,117880.0,117870.0,1.42440044]
[1752880809030,0.00196231,117880.0,117870.0,1.42754044]
[1752880810809,0.00196231,117880.0,117870.0,1.29081844]
[1752880811422,0.03522,117890.0,117880.0,0.54965364]
[1752880811630,0.03624,117890.0,117880.0,0.70352392]
[1752880812032,0.03624,117890.0,117880.0,0.72898792]
[1752880812903,0.03624,117890.0,117880.0,0.72998792]
[1752880813322,0.03312,117890.0,117880.0,0.72998792]
[1752880814485,0.03312,117890.0,117880.0,1.21375152]
[1752880818558,0.03622,117890.0,117880.0,1.14539152]
[1752880818745,0.08480819,117890.0,117880.0,0.51502218]
[1752880818946,0.09329052,117890.0,117880.0,0.93182487]
[1752880819081,0.08480819,117890.0,117880.0,0.93182487]
[1752880819282,0.08480819,117890.0,117880.0,1.18824752]
[1752880819486,0.26294019,117890.0,117880.0,1.17976483]
[1752880819704,0.26294019,117890.0,117880.0,1.18824767]
[1752880819911,0.27142267,117890.0,117880.0,1.18824767]
[1752880820115,0.09329052,117890.0,117880.0,1.19673036]
[1752880820352,0.101773,117890.0,117880.0,1.18824767]
[1752880820559,0.101773,117890.0,117880.0,1.18724767]
[1752880820969,0.102773,117890.0,117880.0,1.18724767]
[1752880821621,0.27242267,117890.0,117880.0,1.18724767]
[1752880822073,0.27242267,117890.0,117880.0,0.69500123]
[1752880822286,0.26394069,117890.0,117880.0,1.17876483]
[1752880822491,0.2554585,117890.0,117880.0,1.11044497]
[1752880822705,0.24697617,117890.0,117880.0,0.75025293]
[1752880822945,0.24697617,117890.0,117880.0,0.69041606]
[1752880823161,0.23849369,117890.0,117880.0,0.75873606]
[1752880823565,0.2469761,117890.0,117880.0,0.9368831]
[1752880823784,0.08580862,117890.0,117880.0,0.95384863]
[1752880823992,0.08580862,117890.0,117880.0,0.71196683]
[1752880824218,0.08580862,117890.0,117880.0,1.19573043]
[1752880825050,0.09429052,117890.0,117880.0,1.19573043]
[1752880825669,0.10277293,117890.0,117880.0,1.19573043]
[1752880825884,0.10277293,117890.0,117880.0,1.18724774]
[1752880826094,0.10277293,117890.0,117880.0,1.19573043]
[1752880828465,0.11125541,117890.0,117880.0,1.19573043]
[1752880828967,0.06884402,117890.0,117880.0,1.19573043]
[1752880829459,0.03412,117890.0,117880.0,1.20100043]
[1752880829667,0.06574402,117890.0,117880.0,1.20100043]
[1752880829997,0.06876402,117890.0,117880.0,1.12741043]
[1752880830209,0.06876402,117890.0,117880.0,0.95380863]
[1752880830863,0.06876402,117890.0,117880.0,1.19569043]
[1752880834986,0.07724592,117890.0,117880.0,1.19569043]
[1752880835838,0.06876402,117890.0,117880.0,1.19569043]
[1752880836174,0.07724592,117890.0,117880.0,1.19569043]
[1752880836412,0.06876402,117890.0,117880.0,1.19569043]
[1752880836574,0.07422585,117890.0,117880.0,1.19569043]
[1752880837130,0.07422585,117890.0,117880.0,0.71192683]
[1752880837341,0.08270783,117890.0,117880.0,1.19569043]
[1752880837537,0.08572783,117890.0,117880.0,1.19569043]
[1752880837904,0.07724585,117890.0,117880.0,1.19569043]
[1752880838761,0.08572775,117890.0,117880.0,1.19569043]
[1752880840083,0.07724585,117890.0,117880.0,1.19569043]
[1752880840284,0.06876402,117890.0,117880.0,1.19569043]
[1752880840769,0.06574402,117890.0,117880.0,1.19569043]
[1752880841390,0.07422592,117890.0,117880.0,1.19569043]
[1752880843020,0.07422592,117890.0,117880.0,0.71192683]
[1752880843263,0.07422592,117890.0,117880.0,1.19569043]
[1752880843413,0.06574402,117890.0,117880.0,1.19569043]
[1752880843617,0.06574402,117890.0,117880.0,0.71192683]
[1752880843845,0.08270804,117890.0,117880.0,1.19569043]
[1752880844041,0.07724592,117890.0,117880.0,1.19569043]
[1752880844272,0.0857279,117890.0,117880.0,1.19569043]
[1752880844994,0.06876402,117890.0,117880.0,1.19569043]
[1752880845215,0.06574402,117890.0,117880.0,1.19569043]
[1752880845649,0.06574402,117890.0,117880.0,1.19784043]
[1752880846672,0.06574402,117890.0,117880.0,1.20096043]
[1752880847530,0.07422592,117890.0,117880.0,1.19569043]
[1752880847738,0.07724592,117890.0,117880.0,1.19569043]
[1752880848129,0.08572797,117890.0,117880.0,1.19569043]
[1752880848320,0.0857279,117890.0,117880.0,1.19569043]
[1752880849599,0.09421002,117890.0,117880.0,1.19569043]
[1752880849794,0.0857279,117890.0,117880.0,1.19569043]
[1752880850757,0.09118995,117890.0,117880.0,1.19569043]
[1752880850971,0.0827079,117890.0,117880.0,1.19569043]
[1752880851378,0.09119009,117890.0,117880.0,1.19569043]
[1752880851512,0.0827079,117890.0,117880.0,1.19569043]
[1752880851708,0.09119002,117890.0,117880.0,1.19569043]
[1752880851914,0.0827079,117890.0,117880.0,1.19569043]
[1752880852113,0.09119002,117890.0,117880.0,1.19569043]
[1752880852373,0.0827079,117890.0,117880.0,1.19569043]
[1752880852538,0.09118995,117890.0,117880.0,1.19569043]
[1752880852740,0.09967214,117890.0,117880.0,1.19569043]
[1752880854044,0.09118995,117890.0,117880.0,1.19569043]
[1752880854242,0.09967214,117890.0,117880.0,1.19569043]
[1752880854616,0.1081544,117890.0,117880.0,1.19569043]
[1752880854827,0.10815447,117890.0,117880.0,1.19569043]
[1752880855481,0.10815498,117890.0,117880.0,0.95380863]
[1752880856103,0.09119024,117890.0,117880.0,0.95380863]
[1752880856309,0.09119024,117890.0,117880.0,1.19569043]
[1752880856723,0.09967257,117890.0,117880.0,1.19569043]
[1752880856909,0.09119024,117890.0,117880.0,1.19569043]
[1752880857330,0.09967257,117890.0,117880.0,1.19569043]
[1752880857672,0.10288257,117890.0,117880.0,0.88552863]
[1752880857882,0.25556821,117890.0,117880.0,0.6500818]
[1752880858820,0.25556821,117890.0,117880.0,0.5818818]
[1752880859018,0.25556821,117890.0,117880.0,0.6500418]
[1752880861081,0.24137113,117880.0,117870.0,0.06]
[1752880861284,0.28833621,117880.0,117870.0,0.12816]
[1752880861713,0.24667113,117880.0,117870.0,0.3700418]
[1752880861916,0.24346113,117880.0,117870.0,0.53972025]
[1752880862136,0.25194411,117880.0,117870.0,0.54820402]
[1752880862289,0.25294411,117880.0,117870.0,0.53972025]
[1752880862496,0.25494411,117880.0,117870.0,0.54820417]
[1752880862725,0.05365575,117880.0,117870.0,0.57564506]
[1752880863137,0.05365575,117880.0,117870.0,0.57888506]
[1752880863138,0.05156575,117880.0,117870.0,0.57888506]
[1752880863296,0.01148255,117880.0,117870.0,0.57888506]
[1752880863639,0.003,117880.0,117870.0,0.57888506]
[1752880864210,0.003,117880.0,117870.0,1.29211799]
[1752880864426,0.03462402,117880.0,117870.0,1.29211799]
[1752880864838,0.03462402,117880.0,117870.0,1.05023619]
[1752880865050,0.03362402,117880.0,117870.0,1.05023619]
[1752880865459,0.03162402,117880.0,117870.0,1.05023619]
[1752880869077,0.04010657,117880.0,117870.0,1.05023619]
[1752880869493,0.03162402,117880.0,117870.0,1.05023619]
[1752880870806,0.05747002,117890.0,117880.0,0.19511279]
[1752880871022,0.05747002,117890.0,117880.0,0.74898639]
[1752880871257,0.05747002,117890.0,117880.0,0.75222639]
[1752880871728,0.06595235,117890.0,117880.0,0.75222639]
[1752880871958,0.06695235,117890.0,117880.0,0.75222639]
[1752880872380,0.06895235,117890.0,117880.0,0.75222639]
[1752880873196,0.09975235,117890.0,117880.0,0.75222639]
[1752880874649,0.08425235,117890.0,117880.0,0.75222639]
[1752880875083,0.09273476,117890.0,117880.0,0.63097955]
[1752880876098,0.08425235,117890.0,117880.0,0.63097955]
[1752880876902,0.09273476,117890.0,117880.0,0.63097955]
[1752880877135,0.08425235,117890.0,117880.0,0.63097955]